[Event "Titled Tuesday Blitz June 28 Late 2022"]
[White "Ladan, Nicholas"]
[Black "Diaz Rosas, Julio Cesar"]
[WhiteFideId "30918855"]
[BlackFideId "5105099"]
[WhiteElo "2502"]
[BlackElo "2662"]
[Result "0-1"]
[Round "07"]
[TimeControl "180+1"]
[Date "2022.06.29"]
[WhiteClock "0:00:45"]
[BlackClock "0:00:22"]

1. d4 {[%clk 0:03:00]}  d5 {[%clk 0:02:58]} 2. c4 {[%clk 0:02:59]}  e6 {[%clk 0:02:58]} 3. Nf3 {[%clk 0:02:59]}  a6 {[%clk 0:02:57]} 4. g3 {[%clk 0:02:58]}  dxc4 {[%clk 0:02:57]} 5. Bg2 {[%clk 0:02:56]}  Nc6 {[%clk 0:02:57]} 6. O-O {[%clk 0:02:54]}  Rb8 {[%clk 0:02:58]} 7. e3 {[%clk 0:02:53]}  b5 {[%clk 0:02:57]} 8. b3 {[%clk 0:02:49]}  cxb3 {[%clk 0:02:54]} 9. axb3 {[%clk 0:02:49]}  Bb7 {[%clk 0:02:55]} 10. Qe2 {[%clk 0:02:50]}  Nf6 {[%clk 0:02:54]} 11. Bd2 {[%clk 0:02:47]}  Bb4 {[%clk 0:02:50]} 12. Rc1 {[%clk 0:02:45]}  Bxd2 {[%clk 0:02:45]} 13. Nfxd2 {[%clk 0:02:40]}  Ne7 {[%clk 0:02:41]} 14. Bxb7 {[%clk 0:02:36]}  Rxb7 {[%clk 0:02:42]} 15. Rxa6 {[%clk 0:02:36]}  O-O {[%clk 0:02:42]} 16. Nc3 {[%clk 0:02:32]}  c6 {[%clk 0:02:39]} 17. Nce4 {[%clk 0:02:30]}  Nxe4 {[%clk 0:02:38]} 18. Nxe4 {[%clk 0:02:30]}  Rb8 {[%clk 0:02:28]} 19. Nc5 {[%clk 0:02:27]}  Ra8 {[%clk 0:02:25]} 20. Rca1 {[%clk 0:02:26]}  Rxa6 {[%clk 0:02:24]} 21. Rxa6 {[%clk 0:02:27]}  Qd5 {[%clk 0:02:17]} 22. Ra7 {[%clk 0:02:22]}  Re8 {[%clk 0:01:46]} 23. Qa2 {[%clk 0:02:11]}  h5 {[%clk 0:01:38]} 24. h3 {[%clk 0:01:58]}  h4 {[%clk 0:01:36]} 25. g4 {[%clk 0:01:58]}  Qf3 {[%clk 0:01:35]} 26. Nd3 {[%clk 0:01:40]}  Qd1+ {[%clk 0:01:27]} 27. Kh2 {[%clk 0:01:34]}  Qxd3 {[%clk 0:01:27]} 28. Qa5 {[%clk 0:01:31]}  Nd5 {[%clk 0:01:15]} 29. Qa6 {[%clk 0:01:11]}  Qc2 {[%clk 0:01:05]} 30. Kg1 {[%clk 0:01:07]}  Qd1+ {[%clk 0:00:44]} 31. Kg2 {[%clk 0:01:06]}  Qe2 {[%clk 0:00:41]} 32. Kg1 {[%clk 0:01:04]}  Nxe3 {[%clk 0:00:37]} 33. fxe3 {[%clk 0:01:04]}  Qxe3+ {[%clk 0:00:38]} 34. Kg2 {[%clk 0:01:02]}  Qg3+ {[%clk 0:00:37]} 35. Kf1 {[%clk 0:01:02]}  Qxh3+ {[%clk 0:00:38]} 36. Kf2 {[%clk 0:01:02]}  Qg3+ {[%clk 0:00:38]} 37. Kf1 {[%clk 0:01:03]}  Qf4+ {[%clk 0:00:35]} 38. Ke1 {[%clk 0:01:02]}  Qe4+ {[%clk 0:00:35]} 39. Kf1 {[%clk 0:00:59]}  Qd3+ {[%clk 0:00:34]} 40. Kg2 {[%clk 0:00:57]}  Qxd4 {[%clk 0:00:31]} 41. Qb7 {[%clk 0:00:55]}  Qxg4+ {[%clk 0:00:31]} 42. Kh2 {[%clk 0:00:55]}  Qf4+ {[%clk 0:00:31]} 43. Kg2 {[%clk 0:00:55]}  Rd8 {[%clk 0:00:30]} 44. Ra8 {[%clk 0:00:53]}  Rxa8 {[%clk 0:00:29]} 45. Qxa8+ {[%clk 0:00:54]}  Kh7 {[%clk 0:00:28]} 46. Qe8 {[%clk 0:00:54]}  Qg3+ {[%clk 0:00:24]} 47. Kh1 {[%clk 0:00:54]}  Qf3+ {[%clk 0:00:24]} 48. Kh2 {[%clk 0:00:54]}  h3 {[%clk 0:00:24]} 49. Qxc6 {[%clk 0:00:45]}  Qxc6 {[%clk 0:00:22]} 0-1


[Site "https://www.chess.com"]

[Event "Titled Tuesday Blitz June 28 Late 2022"]
[White "Lashkin, Jegor"]
[Black "Yuan, Qingyu"]
[WhiteFideId "13907808"]
[BlackFideId "8609772"]
[WhiteElo "2368"]
[BlackElo "2359"]
[Result "1-0"]
[Round "07"]
[TimeControl "180+1"]
[Date "2022.06.28"]
[WhiteClock "0:00:23"]
[BlackClock "0:00:04"]

1. d4 {[%clk 0:03:00]}  d5 {[%clk 0:02:59]} 2. c4 {[%clk 0:03:01]}  e6 {[%clk 0:03:00]} 3. Nc3 {[%clk 0:03:01]}  Nf6 {[%clk 0:03:00]} 4. cxd5 {[%clk 0:03:01]}  exd5 {[%clk 0:03:01]} 5. Bg5 {[%clk 0:03:01]}  c6 {[%clk 0:03:01]} 6. Qc2 {[%clk 0:03:01]}  h6 {[%clk 0:03:01]} 7. Bh4 {[%clk 0:03:01]}  Be7 {[%clk 0:03:01]} 8. e3 {[%clk 0:03:01]}  O-O {[%clk 0:03:02]} 9. Bd3 {[%clk 0:03:01]}  Re8 {[%clk 0:03:03]} 10. Nge2 {[%clk 0:03:00]}  Nbd7 {[%clk 0:03:03]} 11. a4 {[%clk 0:03:00]}  a5 {[%clk 0:03:02]} 12. O-O {[%clk 0:03:00]}  Nb8 {[%clk 0:03:03]} 13. Rad1 {[%clk 0:02:56]}  Na6 {[%clk 0:03:03]} 14. Qc1 {[%clk 0:02:55]}  Nb4 {[%clk 0:03:03]} 15. Bb1 {[%clk 0:02:56]}  Nh5 {[%clk 0:02:55]} 16. Bxe7 {[%clk 0:02:55]}  Qxe7 {[%clk 0:02:55]} 17. Qd2 {[%clk 0:02:33]}  Qg5 {[%clk 0:02:33]} 18. Nc1 {[%clk 0:01:49]}  Bf5 {[%clk 0:01:57]} 19. Bxf5 {[%clk 0:01:48]}  Qxf5 {[%clk 0:01:57]} 20. Nb3 {[%clk 0:01:48]}  Nf6 {[%clk 0:01:52]} 21. f3 {[%clk 0:01:36]}  Qg6 {[%clk 0:01:26]} 22. Rfe1 {[%clk 0:01:19]}  Re7 {[%clk 0:01:19]} 23. Re2 {[%clk 0:01:14]}  b6 {[%clk 0:01:17]} 24. Nc1 {[%clk 0:01:05]}  Rae8 {[%clk 0:00:51]} 25. N3a2 {[%clk 0:01:03]}  Nxa2 {[%clk 0:00:38]} 26. Nxa2 {[%clk 0:01:04]}  Re6 {[%clk 0:00:32]} 27. Nc1 {[%clk 0:00:57]}  Qg5 {[%clk 0:00:29]} 28. Rde1 {[%clk 0:00:56]}  Nd7 {[%clk 0:00:22]} 29. Nd3 {[%clk 0:00:55]}  Qd8 {[%clk 0:00:19]} 30. b3 {[%clk 0:00:47]}  Qc7 {[%clk 0:00:14]} 31. Qc3 {[%clk 0:00:46]}  Qd6 {[%clk 0:00:14]} 32. e4 {[%clk 0:00:31]}  dxe4 {[%clk 0:00:13]} 33. fxe4 {[%clk 0:00:31]}  Qb8 {[%clk 0:00:09]} 34. e5 {[%clk 0:00:24]}  Kh8 {[%clk 0:00:07]} 35. Nf4 {[%clk 0:00:23]}  R6e7 {[%clk 0:00:07]} 36. Qxc6 {[%clk 0:00:23]}  Kg8 {[%clk 0:00:03]} 37. Nd5 {[%clk 0:00:23]}  Nf8 {[%clk 0:00:02]} 38. Nxe7+ {[%clk 0:00:23]}  Rxe7 {[%clk 0:00:03]} 39. d5 {[%clk 0:00:23]}  Rc7 {[%clk 0:00:03]} 40. Qd6 {[%clk 0:00:22]}  Qb7 {[%clk 0:00:03]} 41. e6 {[%clk 0:00:22]}  fxe6 {[%clk 0:00:03]} 42. dxe6 {[%clk 0:00:22]}  Re7 {[%clk 0:00:04]} 43. Qd8 {[%clk 0:00:20]}  Qa7 {[%clk 0:00:02]} 44. Rf2 {[%clk 0:00:20]}  Kh7 {[%clk 0:00:02]} 45. Qxf8 {[%clk 0:00:20]}  b5 {[%clk 0:00:02]} 46. Qf5+ {[%clk 0:00:20]}  Kh8 {[%clk 0:00:02]} 47. axb5 {[%clk 0:00:19]}  Rxe6 {[%clk 0:00:01]} 48. Qxe6 {[%clk 0:00:19]}  Qd4 {[%clk 0:00:01]} 49. Qe8+ {[%clk 0:00:20]}  Kh7 {[%clk 0:00:02]} 50. Qe4+ {[%clk 0:00:21]}  Qxe4 {[%clk 0:00:02]} 51. Rxe4 {[%clk 0:00:21]}  Kg6 {[%clk 0:00:03]} 52. Ra4 {[%clk 0:00:22]}  h5 {[%clk 0:00:04]} 53. Rxa5 {[%clk 0:00:23]} 1-0


[Site "https://www.chess.com"]

[Event "Titled Tuesday Blitz June 28 Late 2022"]
[White "Laurusas, Tomas"]
[Black "Van Foreest, Jorden"]
[WhiteFideId "12803731"]
[BlackFideId "1039784"]
[WhiteElo "2442"]
[BlackElo "2609"]
[Result "0-1"]
[Round "07"]
[TimeControl "180+1"]
[Date "2022.06.28"]
[WhiteClock "0:00:59"]
[BlackClock "0:01:59"]

1. d4 {[%clk 0:03:00]}  e6 {[%clk 0:02:59]} 2. c4 {[%clk 0:03:00]}  d5 {[%clk 0:02:58]} 3. Nc3 {[%clk 0:03:00]}  h6 {[%clk 0:02:57]} 4. Nf3 {[%clk 0:02:56]}  Nf6 {[%clk 0:02:56]} 5. Bf4 {[%clk 0:02:52]}  Bd6 {[%clk 0:02:55]} 6. Bg3 {[%clk 0:02:48]}  O-O {[%clk 0:02:55]} 7. e3 {[%clk 0:02:48]}  a6 {[%clk 0:02:38]} 8. Rc1 {[%clk 0:02:34]}  Bxg3 {[%clk 0:02:36]} 9. hxg3 {[%clk 0:02:33]}  Nbd7 {[%clk 0:02:37]} 10. cxd5 {[%clk 0:02:24]}  exd5 {[%clk 0:02:36]} 11. Bd3 {[%clk 0:02:24]}  c6 {[%clk 0:02:37]} 12. O-O {[%clk 0:02:20]}  Qe7 {[%clk 0:02:34]} 13. Na4 {[%clk 0:02:20]}  Ne8 {[%clk 0:02:33]} 14. Qb3 {[%clk 0:02:16]}  Nd6 {[%clk 0:02:32]} 15. Qa3 {[%clk 0:02:14]}  Re8 {[%clk 0:02:32]} 16. Rfe1 {[%clk 0:02:13]}  Rb8 {[%clk 0:02:28]} 17. Re2 {[%clk 0:02:08]}  g6 {[%clk 0:02:28]} 18. Rce1 {[%clk 0:01:54]}  Kg7 {[%clk 0:02:25]} 19. Qb3 {[%clk 0:01:48]}  Nf6 {[%clk 0:02:18]} 20. Ne5 {[%clk 0:01:42]}  Bf5 {[%clk 0:02:18]} 21. Nc5 {[%clk 0:01:35]}  Bxd3 {[%clk 0:02:18]} 22. Nexd3 {[%clk 0:01:32]}  Nfe4 {[%clk 0:02:17]} 23. Qa3 {[%clk 0:01:30]}  Nxc5 {[%clk 0:02:08]} 24. Qxc5 {[%clk 0:01:29]}  h5 {[%clk 0:02:09]} 25. a4 {[%clk 0:01:23]}  Qf6 {[%clk 0:02:08]} 26. Ne5 {[%clk 0:01:18]}  Ne4 {[%clk 0:02:07]} 27. Qb6 {[%clk 0:01:16]}  h4 {[%clk 0:02:06]} 28. Nd7 {[%clk 0:01:00]}  Qd8 {[%clk 0:02:00]} 29. Nxb8 {[%clk 0:00:59]}  Qxb6 {[%clk 0:01:59]} 0-1


[Site "https://www.chess.com"]

[Event "Titled Tuesday Blitz June 28 Late 2022"]
[White "Melikhov, Evgeny V."]
[Black "Colivet Gamboa, Julio Cesar"]
[WhiteFideId "4122046"]
[BlackFideId "3949583"]
[WhiteElo "1904"]
[BlackElo "1743"]
[Result "1-0"]
[Round "07"]
[TimeControl "180+1"]
[Date "2022.06.29"]
[WhiteClock "0:00:43"]
[BlackClock "0:00:24"]

1. d4 {[%clk 0:03:00]}  Nf6 {[%clk 0:02:45]} 2. c4 {[%clk 0:02:59]}  e6 {[%clk 0:02:43]} 3. Nc3 {[%clk 0:02:59]}  d5 {[%clk 0:02:43]} 4. cxd5 {[%clk 0:02:59]}  exd5 {[%clk 0:02:43]} 5. Bg5 {[%clk 0:02:58]}  Be7 {[%clk 0:02:42]} 6. e3 {[%clk 0:02:58]}  O-O {[%clk 0:02:42]} 7. Bd3 {[%clk 0:02:58]}  h6 {[%clk 0:02:41]} 8. Bh4 {[%clk 0:02:58]}  b6 {[%clk 0:02:40]} 9. Nf3 {[%clk 0:02:54]}  Bb7 {[%clk 0:02:40]} 10. O-O {[%clk 0:02:53]}  c5 {[%clk 0:02:40]} 11. Ne5 {[%clk 0:02:50]}  Nbd7 {[%clk 0:02:37]} 12. Qa4 {[%clk 0:02:45]}  Nxe5 {[%clk 0:02:35]} 13. dxe5 {[%clk 0:02:42]}  Nd7 {[%clk 0:02:35]} 14. Bg3 {[%clk 0:02:41]}  a6 {[%clk 0:02:29]} 15. Qg4 {[%clk 0:02:39]}  c4 {[%clk 0:02:23]} 16. Bc2 {[%clk 0:02:36]}  Nc5 {[%clk 0:02:14]} 17. Rad1 {[%clk 0:02:31]}  b5 {[%clk 0:02:12]} 18. f4 {[%clk 0:02:06]}  b4 {[%clk 0:02:09]} 19. Ne2 {[%clk 0:02:00]}  Qb6 {[%clk 0:02:07]} 20. Nd4 {[%clk 0:01:56]}  b3 {[%clk 0:02:02]} 21. axb3 {[%clk 0:01:56]}  Nxb3 {[%clk 0:01:59]} 22. Nf5 {[%clk 0:01:41]}  Bf6 {[%clk 0:01:22]} 23. exf6 {[%clk 0:01:41]}  Qxf6 {[%clk 0:01:23]} 24. Nd4 {[%clk 0:01:40]}  Nc5 {[%clk 0:01:15]} 25. Bh4 {[%clk 0:01:36]}  Qb6 {[%clk 0:01:07]} 26. Qf5 {[%clk 0:01:16]}  g6 {[%clk 0:01:04]} 27. Qf6 {[%clk 0:01:10]}  Qxf6 {[%clk 0:00:56]} 28. Bxf6 {[%clk 0:01:09]}  Rfe8 {[%clk 0:00:53]} 29. Nf3 {[%clk 0:00:58]}  Rab8 {[%clk 0:00:44]} 30. Bd4 {[%clk 0:00:52]}  Nd7 {[%clk 0:00:43]} 31. Ba4 {[%clk 0:00:50]}  Red8 {[%clk 0:00:41]} 32. Bxd7 {[%clk 0:00:49]}  Rxd7 {[%clk 0:00:42]} 33. Ne5 {[%clk 0:00:48]}  Re7 {[%clk 0:00:41]} 34. Ng4 {[%clk 0:00:46]}  h5 {[%clk 0:00:36]} 35. Ne5 {[%clk 0:00:45]}  a5 {[%clk 0:00:30]} 36. Ra1 {[%clk 0:00:45]}  Ra8 {[%clk 0:00:29]} 37. Ra3 {[%clk 0:00:45]}  Bc8 {[%clk 0:00:24]} 38. Rfa1 {[%clk 0:00:43]} 1-0


[Site "https://www.chess.com"]

[Event "Titled Tuesday Blitz June 28 Late 2022"]
[White "Mendez Fortes, Eduardo Jesus"]
[Black "Kovacevic, Radmila"]
[WhiteFideId "3502376"]
[BlackFideId "933171"]
[WhiteElo "2321"]
[BlackElo "2115"]
[Result "1-0"]
[Round "07"]
[TimeControl "180+1"]
[Date "2022.06.29"]
[WhiteClock "0:01:56"]
[BlackClock "0:00:03"]

1. e4 {[%clk 0:03:00]}  e5 {[%clk 0:03:00]} 2. Nf3 {[%clk 0:03:00]}  d5 {[%clk 0:03:01]} 3. Nxe5 {[%clk 0:02:57]}  Bd6 {[%clk 0:03:00]} 4. d4 {[%clk 0:02:56]}  dxe4 {[%clk 0:03:00]} 5. Nc3 {[%clk 0:02:56]}  Bxe5 {[%clk 0:03:01]} 6. dxe5 {[%clk 0:02:57]}  Qxd1+ {[%clk 0:03:01]} 7. Kxd1 {[%clk 0:02:58]}  Nc6 {[%clk 0:03:01]} 8. Nxe4 {[%clk 0:02:55]}  Nxe5 {[%clk 0:02:58]} 9. Bf4 {[%clk 0:02:54]}  Ng4 {[%clk 0:02:34]} 10. f3 {[%clk 0:02:53]}  Bf5 {[%clk 0:02:19]} 11. fxg4 {[%clk 0:02:49]}  Bxe4 {[%clk 0:02:14]} 12. Bc4 {[%clk 0:02:47]}  O-O-O+ {[%clk 0:02:12]} 13. Kc1 {[%clk 0:02:46]}  Bxg2 {[%clk 0:02:08]} 14. Rg1 {[%clk 0:02:46]}  Bd5 {[%clk 0:02:08]} 15. Bd3 {[%clk 0:02:46]}  Ne7 {[%clk 0:01:58]} 16. b3 {[%clk 0:02:45]}  Ng6 {[%clk 0:01:56]} 17. Bg3 {[%clk 0:02:44]}  Rhe8 {[%clk 0:01:51]} 18. Kb2 {[%clk 0:02:42]}  Be4 {[%clk 0:01:48]} 19. Bc4 {[%clk 0:02:41]}  Rd2 {[%clk 0:01:42]} 20. Rac1 {[%clk 0:02:41]}  Re7 {[%clk 0:01:22]} 21. Rge1 {[%clk 0:02:33]}  f6 {[%clk 0:00:45]} 22. h4 {[%clk 0:02:30]}  Rg2 {[%clk 0:00:33]} 23. Rg1 {[%clk 0:02:28]}  Rxg1 {[%clk 0:00:26]} 24. Rxg1 {[%clk 0:02:28]}  Ne5 {[%clk 0:00:19]} 25. Bg8 {[%clk 0:02:18]}  Nf3 {[%clk 0:00:16]} 26. Rf1 {[%clk 0:02:16]}  Nd4 {[%clk 0:00:09]} 27. Rf2 {[%clk 0:02:08]}  Nc6 {[%clk 0:00:07]} 28. g5 {[%clk 0:02:06]}  fxg5 {[%clk 0:00:06]} 29. hxg5 {[%clk 0:02:06]}  Kd7 {[%clk 0:00:06]} 30. Bh4 {[%clk 0:02:06]}  Re8 {[%clk 0:00:05]} 31. Rd2+ {[%clk 0:02:02]}  Kc8 {[%clk 0:00:05]} 32. Bf7 {[%clk 0:02:01]}  Rd8 {[%clk 0:00:05]} 33. Be6+ {[%clk 0:01:58]}  Kb8 {[%clk 0:00:05]} 34. Rf2 {[%clk 0:01:58]}  Bd5 {[%clk 0:00:05]} 35. g6 {[%clk 0:01:56]}  Bxe6 {[%clk 0:00:05]} 36. Bxd8 {[%clk 0:01:55]}  Nxd8 {[%clk 0:00:04]} 37. gxh7 {[%clk 0:01:55]}  Nf7 {[%clk 0:00:04]} 38. Rxf7 {[%clk 0:01:55]}  Bxf7 {[%clk 0:00:04]} 39. h8=Q+ {[%clk 0:01:56]}  Be8 {[%clk 0:00:03]} 40. Qxe8# {[%clk 0:01:56]} 1-0


[Site "https://www.chess.com"]

[Event "Titled Tuesday Blitz June 28 Late 2022"]
[White "Munoz, Francisco Javier"]
[Black "Fawole, John Oyeyemi"]
[WhiteFideId "128368"]
[BlackFideId "8501319"]
[WhiteElo "2383"]
[BlackElo "2091"]
[Result "1-0"]
[Round "07"]
[TimeControl "180+1"]
[Date "2022.06.29"]
[WhiteClock "0:00:17"]
[BlackClock "0:00:01"]

1. e4 {[%clk 0:02:54]}  c5 {[%clk 0:02:58]} 2. Nf3 {[%clk 0:02:54]}  d6 {[%clk 0:02:58]} 3. b3 {[%clk 0:02:53]}  e6 {[%clk 0:02:57]} 4. Bb5+ {[%clk 0:02:52]}  Bd7 {[%clk 0:02:56]} 5. Bxd7+ {[%clk 0:02:52]}  Qxd7 {[%clk 0:02:56]} 6. d4 {[%clk 0:02:52]}  cxd4 {[%clk 0:02:56]} 7. Qxd4 {[%clk 0:02:53]}  Nf6 {[%clk 0:02:55]} 8. Nc3 {[%clk 0:02:53]}  Nc6 {[%clk 0:02:55]} 9. Qd2 {[%clk 0:02:52]}  Be7 {[%clk 0:02:54]} 10. Bb2 {[%clk 0:02:52]}  a6 {[%clk 0:02:53]} 11. O-O-O {[%clk 0:02:53]}  Qc7 {[%clk 0:02:53]} 12. Kb1 {[%clk 0:02:53]}  O-O {[%clk 0:02:52]} 13. h4 {[%clk 0:02:51]}  Rfd8 {[%clk 0:02:50]} 14. h5 {[%clk 0:02:46]}  h6 {[%clk 0:02:48]} 15. Nd4 {[%clk 0:02:44]}  Rac8 {[%clk 0:02:41]} 16. g4 {[%clk 0:02:25]}  Nxd4 {[%clk 0:02:28]} 17. Qxd4 {[%clk 0:02:26]}  d5 {[%clk 0:02:21]} 18. exd5 {[%clk 0:02:13]}  exd5 {[%clk 0:02:14]} 19. g5 {[%clk 0:01:56]}  hxg5 {[%clk 0:02:05]} 20. h6 {[%clk 0:01:55]}  Qf4 {[%clk 0:01:52]} 21. Qxf4 {[%clk 0:01:46]}  gxf4 {[%clk 0:01:51]} 22. hxg7 {[%clk 0:01:47]}  d4 {[%clk 0:01:02]} 23. Rdg1 {[%clk 0:01:44]}  Nh7 {[%clk 0:00:48]} 24. Ne2 {[%clk 0:01:43]}  Bf6 {[%clk 0:00:44]} 25. Nxf4 {[%clk 0:01:27]}  Rc6 {[%clk 0:00:32]} 26. Rh5 {[%clk 0:01:06]}  Bxg7 {[%clk 0:00:24]} 27. Rh4 {[%clk 0:00:47]}  Nf8 {[%clk 0:00:21]} 28. Nh5 {[%clk 0:00:37]}  Ng6 {[%clk 0:00:21]} 29. Nxg7 {[%clk 0:00:37]}  Kxg7 {[%clk 0:00:13]} 30. Rxd4 {[%clk 0:00:21]}  Rxd4 {[%clk 0:00:12]} 31. Bxd4+ {[%clk 0:00:22]}  Kf8 {[%clk 0:00:13]} 32. Kb2 {[%clk 0:00:21]}  b5 {[%clk 0:00:12]} 33. Be3 {[%clk 0:00:20]}  Ke7 {[%clk 0:00:11]} 34. Ra1 {[%clk 0:00:19]}  Ke6 {[%clk 0:00:10]} 35. a4 {[%clk 0:00:20]}  b4 {[%clk 0:00:09]} 36. a5 {[%clk 0:00:20]}  Ne7 {[%clk 0:00:05]} 37. Rh1 {[%clk 0:00:18]}  Nd5 {[%clk 0:00:03]} 38. Rh6+ {[%clk 0:00:18]}  f6 {[%clk 0:00:03]} 39. Bd4 {[%clk 0:00:18]}  Kf5 {[%clk 0:00:02]} 40. f3 {[%clk 0:00:17]}  Kf4 {[%clk 0:00:01]} 41. Rh5 {[%clk 0:00:17]} 1-0


[Site "https://www.chess.com"]

[Event "Titled Tuesday Blitz June 28 Late 2022"]
[White "Navarrete Mendez, Gonzalo Alberto"]
[Black "Dauner, Benedikt"]
[WhiteFideId "5106850"]
[BlackFideId "16225899"]
[WhiteElo "2261"]
[BlackElo "2230"]
[Result "1-0"]
[Round "07"]
[TimeControl "180+1"]
[Date "2022.06.28"]
[WhiteClock "0:00:32"]
[BlackClock "0:00:07"]

1. e4 {[%clk 0:03:00]}  c5 {[%clk 0:03:00]} 2. Nf3 {[%clk 0:03:00]}  a6 {[%clk 0:03:00]} 3. Nc3 {[%clk 0:03:01]}  e6 {[%clk 0:02:58]} 4. d4 {[%clk 0:03:00]}  cxd4 {[%clk 0:02:57]} 5. Nxd4 {[%clk 0:03:01]}  Ne7 {[%clk 0:02:57]} 6. Bg5 {[%clk 0:02:52]}  Qa5 {[%clk 0:02:47]} 7. Qd2 {[%clk 0:02:46]}  Nbc6 {[%clk 0:02:42]} 8. Nb3 {[%clk 0:02:42]}  Qc7 {[%clk 0:02:35]} 9. Bf4 {[%clk 0:02:41]}  e5 {[%clk 0:02:28]} 10. Be3 {[%clk 0:02:35]}  d6 {[%clk 0:02:26]} 11. O-O-O {[%clk 0:02:30]}  Be6 {[%clk 0:02:18]} 12. Qxd6 {[%clk 0:02:22]}  Qxd6 {[%clk 0:02:19]} 13. Rxd6 {[%clk 0:02:22]}  Ng6 {[%clk 0:01:16]} 14. Rd2 {[%clk 0:02:14]}  Bb4 {[%clk 0:01:14]} 15. Bc5 {[%clk 0:02:01]}  Bxb3 {[%clk 0:00:59]} 16. Bxb4 {[%clk 0:02:00]}  Nxb4 {[%clk 0:01:00]} 17. axb3 {[%clk 0:01:57]}  O-O {[%clk 0:00:55]} 18. Bc4 {[%clk 0:01:49]}  b5 {[%clk 0:00:52]} 19. Bd5 {[%clk 0:01:47]}  Rac8 {[%clk 0:00:52]} 20. g3 {[%clk 0:01:45]}  Rc7 {[%clk 0:00:50]} 21. Kb1 {[%clk 0:01:39]}  Rfc8 {[%clk 0:00:48]} 22. Rhd1 {[%clk 0:01:39]}  h6 {[%clk 0:00:42]} 23. Rc1 {[%clk 0:01:31]}  Ne7 {[%clk 0:00:40]} 24. Na2 {[%clk 0:01:26]}  a5 {[%clk 0:00:26]} 25. c3 {[%clk 0:01:18]}  Na6 {[%clk 0:00:15]} 26. Rcd1 {[%clk 0:01:13]}  Nc5 {[%clk 0:00:15]} 27. b4 {[%clk 0:01:09]}  axb4 {[%clk 0:00:10]} 28. Nxb4 {[%clk 0:01:10]}  Ra7 {[%clk 0:00:06]} 29. Ba2 {[%clk 0:01:09]}  Kh7 {[%clk 0:00:05]} 30. f3 {[%clk 0:01:03]}  Rca8 {[%clk 0:00:05]} 31. Bxf7 {[%clk 0:00:58]}  Ra1+ {[%clk 0:00:03]} 32. Kc2 {[%clk 0:00:58]}  Rxd1 {[%clk 0:00:04]} 33. Rxd1 {[%clk 0:00:58]}  Rc8 {[%clk 0:00:04]} 34. Nd5 {[%clk 0:00:56]}  Nc6 {[%clk 0:00:03]} 35. Kb1 {[%clk 0:00:50]}  b4 {[%clk 0:00:02]} 36. Nxb4 {[%clk 0:00:49]}  Nxb4 {[%clk 0:00:02]} 37. cxb4 {[%clk 0:00:50]}  Na6 {[%clk 0:00:03]} 38. Be6 {[%clk 0:00:49]}  Rc7 {[%clk 0:00:03]} 39. Bf5+ {[%clk 0:00:49]}  Kg8 {[%clk 0:00:02]} 40. Rd8+ {[%clk 0:00:49]}  Kf7 {[%clk 0:00:03]} 41. Rd7+ {[%clk 0:00:49]}  Rxd7 {[%clk 0:00:02]} 42. Bxd7 {[%clk 0:00:50]}  Nxb4 {[%clk 0:00:03]} 43. Bb5 {[%clk 0:00:49]}  Ke7 {[%clk 0:00:03]} 44. Kc1 {[%clk 0:00:48]}  Kd6 {[%clk 0:00:04]} 45. Bc4 {[%clk 0:00:47]}  Kc5 {[%clk 0:00:05]} 46. b3 {[%clk 0:00:47]}  Kd4 {[%clk 0:00:05]} 47. Kd2 {[%clk 0:00:46]}  Nc6 {[%clk 0:00:05]} 48. Bd5 {[%clk 0:00:46]}  Nb4 {[%clk 0:00:05]} 49. f4 {[%clk 0:00:46]}  Na6 {[%clk 0:00:05]} 50. fxe5 {[%clk 0:00:43]}  Kxe5 {[%clk 0:00:05]} 51. Ke3 {[%clk 0:00:43]}  Nb4 {[%clk 0:00:04]} 52. Bc4 {[%clk 0:00:43]}  Nc2+ {[%clk 0:00:04]} 53. Kf3 {[%clk 0:00:42]}  Nd4+ {[%clk 0:00:05]} 54. Ke3 {[%clk 0:00:42]}  Nc6 {[%clk 0:00:05]} 55. Bd5 {[%clk 0:00:41]}  Nd4 {[%clk 0:00:05]} 56. h3 {[%clk 0:00:38]}  g6 {[%clk 0:00:03]} 57. Bf7 {[%clk 0:00:36]}  g5 {[%clk 0:00:03]} 58. Bd5 {[%clk 0:00:36]}  Nc2+ {[%clk 0:00:03]} 59. Kf3 {[%clk 0:00:36]}  Nd4+ {[%clk 0:00:04]} 60. Kg4 {[%clk 0:00:36]}  Kf6 {[%clk 0:00:02]} 61. Kh5 {[%clk 0:00:35]}  Kg7 {[%clk 0:00:02]} 62. h4 {[%clk 0:00:35]}  gxh4 {[%clk 0:00:01]} 63. gxh4 {[%clk 0:00:36]}  Nf3 {[%clk 0:00:01]} 64. b4 {[%clk 0:00:36]}  Nd4 {[%clk 0:00:02]} 65. Kg4 {[%clk 0:00:34]}  Nc2 {[%clk 0:00:01]} 66. b5 {[%clk 0:00:34]}  Nd4 {[%clk 0:00:02]} 67. b6 {[%clk 0:00:34]}  Nb5 {[%clk 0:00:02]} 68. b7 {[%clk 0:00:34]}  Nd6 {[%clk 0:00:03]} 69. b8=Q {[%clk 0:00:34]}  Nf7 {[%clk 0:00:03]} 70. Qc7 {[%clk 0:00:32]}  h5+ {[%clk 0:00:04]} 71. Kxh5 {[%clk 0:00:32]}  Kh8 {[%clk 0:00:04]} 72. Bxf7 {[%clk 0:00:31]}  Kg7 {[%clk 0:00:02]} 73. Bg6+ {[%clk 0:00:31]}  Kf6 {[%clk 0:00:03]} 74. Qf7+ {[%clk 0:00:31]}  Ke5 {[%clk 0:00:04]} 75. Qf5+ {[%clk 0:00:31]}  Kd4 {[%clk 0:00:05]} 76. e5 {[%clk 0:00:31]}  Ke3 {[%clk 0:00:06]} 77. e6 {[%clk 0:00:32]}  Kd4 {[%clk 0:00:07]} 78. e7 {[%clk 0:00:32]} 1-0


[Site "https://www.chess.com"]